bitfinex-derivatives/quotes_BTCF0:USTF0_20250905
["timestamp","ask_amount","ask_price","bid_price","bid_amount"]
[1757057283619,0.38224,112860.0,112850.0,0.0001]
[1757057283820,0.38224,112860.0,112850.0,0.03634]
[1757057284025,1.22368,112860.0,112850.0,0.03634]
[1757057284621,0.3608,112860.0,112850.0,0.03634]
[1757057284823,0.84144,112860.0,112850.0,0.03634]
[1757057285024,1.20224,112860.0,112850.0,0.04034]
[1757057285222,1.20228,112860.0,112850.0,0.04034]
[1757057286125,1.20224,112860.0,112850.0,0.04034]
[1757057286320,1.20224,112860.0,112850.0,0.04134]
[1757057286514,1.20224,112860.0,112850.0,0.29134]
[1757057286515,4e-05,112860.0,112850.0,0.29134]
[1757057286721,0.8414,112860.0,112850.0,0.65214]
[1757057286923,4e-05,112860.0,112850.0,0.65214]
[1757057287323,4e-05,112860.0,112850.0,0.29134]
[1757057288322,0.38228,112860.0,112850.0,0.04134]
[1757057290125,0.02148,112860.0,112850.0,0.04134]
[1757057290432,0.38228,112860.0,112850.0,0.04134]
[1757057291524,1.22336,112860.0,112850.0,0.04134]
[1757057292321,0.36084,112860.0,112850.0,0.29134]
[1757057292521,0.84112,112860.0,112850.0,0.29134]
[1757057292932,0.86256,112860.0,112850.0,0.29134]
[1757057293127,0.86256,112860.0,112850.0,0.04134]
[1757057293324,1.22336,112860.0,112850.0,0.04134]
[1757057293525,1.47336,112860.0,112850.0,0.01837]
[1757057295333,1.48376,112860.0,112850.0,0.005]
[1757057296332,1.48376,112860.0,112840.0,0.0001]
[1757057296535,0.64953431,112850.0,112840.0,0.0001]
[1757057296731,0.02444,112840.0,112830.0,0.0001]
[1757057297033,1.22604,112840.0,112820.0,0.01347]
[1757057297332,0.64953431,112830.0,112820.0,0.0001]
[1757057297536,0.64953431,112830.0,112810.0,0.01371]
[1757057297723,1.223,112820.0,112810.0,0.0001]
[1757057297927,1.2334,112820.0,112800.0,0.02039087]
[1757057298127,0.64953431,112810.0,112800.0,0.02039087]
[1757057298327,0.64953431,112810.0,112800.0,0.02029087]
[1757057299029,0.64953431,112810.0,112800.0,0.03390087]
[1757057299030,0.64853431,112810.0,112800.0,0.03390087]
[1757057299235,1.48925431,112810.0,112800.0,0.05879087]
[1757057299434,0.0001,112820.0,112810.0,0.0355]
[1757057299736,0.28922,112830.0,112820.0,0.0355]
[1757057299931,0.28912,112830.0,112820.0,0.3963]
[1757057300236,0.3609,112840.0,112830.0,0.0355]
[1757057300429,0.3608,112840.0,112830.0,0.0355]
[1757057300625,0.8622,112840.0,112830.0,0.01361]
[1757057300826,1.223,112840.0,112830.0,0.01361]
[1757057301632,1.224,112840.0,112830.0,0.01361]
[1757057302036,1.474,112840.0,112830.0,0.01361]
[1757057302229,1.474,112840.0,112820.0,0.01371]
[1757057302430,0.38224,112830.0,112820.0,0.0356]
[1757057302741,0.38224,112830.0,112820.0,0.0355]
[1757057304033,0.38224,112830.0,112820.0,0.0365]
[1757057304233,0.38224,112830.0,112820.0,0.01461]
[1757057304428,0.63324,112830.0,112820.0,0.001]
[1757057306236,0.90053431,112830.0,112820.0,0.001]
[1757057307236,1.49113431,112830.0,112820.0,0.001]
[1757057307441,1.49113431,112830.0,112820.0,0.01461]
[1757057308536,1.49113431,112830.0,112820.0,0.001]
[1757057309342,0.65053431,112830.0,112820.0,0.001]
[1757057309535,1.49105431,112830.0,112820.0,0.001]
[1757057309734,1.13025431,112830.0,112820.0,0.3618]
[1757057309941,1.13025431,112830.0,112820.0,0.3973]
[1757057310344,0.02244,112830.0,112820.0,0.3973]
[1757057310539,0.86296,112830.0,112820.0,0.3973]
[1757057310745,0.02244,112830.0,112820.0,0.3973]
[1757057310944,0.86292,112830.0,112820.0,0.3973]
[1757057311640,1.22372,112830.0,112820.0,0.0365]
[1757057312240,1.22372,112830.0,112820.0,0.001]
[1757057312545,0.38324,112830.0,112820.0,0.001]
[1757057312744,1.22368,112830.0,112820.0,0.01461]
[1757057313634,0.38324,112830.0,112820.0,0.0365]
[1757057313836,1.22364,112830.0,112820.0,0.0365]
[1757057314840,1.22364,112830.0,112820.0,0.01461]
[1757057315038,1.22364,112830.0,112820.0,0.001]
[1757057318254,1.22364,112830.0,112820.0,0.01461]
[1757057318752,1.22364,112830.0,112820.0,0.001]
[1757057320158,1.22364,112830.0,112820.0,0.01461]
[1757057323448,1.24318661,112830.0,112820.0,0.01461]
[1757057327970,1.24318661,112830.0,112820.0,0.001]
[1757057330262,1.31540117,112830.0,112820.0,0.001]
[1757057330766,1.63867737,112830.0,112820.0,0.001]
[1757057331074,0.79827737,112830.0,112820.0,0.001]
[1757057331370,1.31484117,112830.0,112820.0,0.001]
[1757057331570,1.88811737,112830.0,112810.0,0.0001]
[1757057331773,0.7133162,112820.0,112810.0,0.0001]
[1757057331967,0.73286281,112820.0,112800.0,0.0001]
[1757057332169,0.73286281,112820.0,112790.0,0.0983872]
[1757057332170,0.01974,112800.0,112790.0,0.0983872]
[1757057332769,0.01974,112800.0,112790.0,0.03589]
[1757057333071,0.01974,112800.0,112790.0,0.28589]
[1757057333267,0.01974,112800.0,112790.0,0.01361]
[1757057333472,0.7067162,112800.0,112780.0,0.01356]
[1757057333672,0.85744,112790.0,112780.0,0.03584]
[1757057334375,0.85344,112790.0,112780.0,0.03584]
[1757057334578,0.01968,112790.0,112780.0,0.03584]
[1757057334778,0.8594,112790.0,112780.0,0.03584]
[1757057336177,0.8594,112790.0,112780.0,0.03684]
[1757057336474,0.8594,112790.0,112780.0,0.03884]
[1757057336666,1.5434762,112790.0,112780.0,0.003]
[1757057336872,1.7934762,112790.0,112780.0,0.003]
[1757057337067,1.81303557,112790.0,112780.0,0.002]
[1757057337275,1.7934762,112790.0,112780.0,0.003]
[1757057337772,1.4702,112790.0,112780.0,0.003]
[1757057337977,1.7954762,112790.0,112780.0,0.001]
[1757057338172,0.01808,112770.0,112760.0,0.03584]
[1757057338379,0.85768,112770.0,112760.0,0.03584]
[1757057340483,0.85776,112770.0,112760.0,0.64764]
[1757057340678,0.01808,112770.0,112760.0,0.64764]
[1757057340880,0.85768,112770.0,112760.0,0.64764]
[1757057341281,0.85768,112770.0,112760.0,0.39764]
[1757057341778,0.01808,112770.0,112760.0,0.64764]
[1757057341976,0.7021562,112790.0,112780.0,0.03584]
[1757057342180,1.3376762,112790.0,112780.0,0.03584]
[1757057342682,1.5417162,112790.0,112780.0,0.03584]
[1757057342875,18.57834,112790.0,112780.0,0.03584]
[1757057343080,18.9016162,112790.0,112780.0,0.01356]
[1757057343381,18.9056162,112790.0,112770.0,0.01356]
[1757057343578,0.7021562,112780.0,112770.0,0.03584]
[1757057343883,0.7021562,112780.0,112770.0,0.03576]
[1757057344080,1.5416762,112780.0,112770.0,0.03576]
[1757057344284,1.1808762,112780.0,112770.0,0.03576]
[1757057345181,1.5416762,112780.0,112770.0,0.03576]
[1757057346182,1.5416762,112780.0,112770.0,0.04019]
[1757057346582,1.5426762,112780.0,112770.0,0.04019]
[1757057346777,1.5436762,112780.0,112770.0,0.04019]
[1757057347281,1.5436762,112780.0,112770.0,0.01791]
[1757057347780,1.5521562,112780.0,112770.0,0.00443]
[1757057348285,1.22888,112780.0,112770.0,0.00443]
[1757057348485,1.5521562,112780.0,112770.0,0.00443]
[1757057348680,0.7126362,112780.0,112770.0,0.00443]
[1757057348886,1.5435562,112780.0,112770.0,0.01799]
[1757057349373,0.7041562,112780.0,112770.0,0.04027]
[1757057349576,1.5435162,112780.0,112770.0,0.04027]
[1757057350185,0.3433562,112780.0,112770.0,0.04027]
[1757057350381,0.38088,112780.0,112770.0,0.04027]
[1757057350584,1.5435162,112780.0,112770.0,0.04027]
[1757057352284,1.5434762,112780.0,112770.0,0.04027]
[1757057353184,0.7041562,112780.0,112770.0,0.04027]
[1757057353384,0.02008,112780.0,112770.0,0.04027]
[1757057353583,0.85936,112780.0,112770.0,0.04027]
[1757057353789,1.1826362,112780.0,112770.0,0.04027]
[1757057354185,0.02012,112780.0,112770.0,0.04027]
[1757057354392,1.5433962,112780.0,112770.0,0.01799]
[1757057354588,1.22012,112780.0,112770.0,0.00443]
[1757057354790,1.5433962,112780.0,112770.0,0.01799]
[1757057356887,1.22012,112780.0,112770.0,0.01799]
[1757057357088,1.5433962,112780.0,112770.0,0.01799]
[1757057357690,1.5433962,112780.0,112770.0,0.04027]
[1757057358595,1.5518762,112780.0,112770.0,0.00443]
[1757057359881,1.8018762,112780.0,112770.0,0.00443]
[1757057360086,1.8008762,112780.0,112770.0,0.00443]
[1757057360397,1.8068762,112780.0,112770.0,0.00543]
[1757057360695,1.8058762,112780.0,112770.0,0.00543]
[1757057360893,1.8098762,112780.0,112770.0,0.00543]
[1757057362289,1.8098762,112780.0,112760.0,0.0001]
[1757057362489,0.6935962,112770.0,112760.0,0.0001]
[1757057362689,0.6935962,112770.0,112750.0,0.01362]
[1757057362894,1.5326362,112760.0,112750.0,0.01362]
[1757057363093,1.5326362,112760.0,112750.0,0.01352]
[1757057363598,1.46834216,112760.0,112750.0,0.01352]
[1757057364097,1.46834216,112760.0,112740.0,0.01809]
[1757057364289,0.62930216,112750.0,112740.0,0.03926]
[1757057364494,0.62930216,112750.0,112740.0,0.03916]
[1757057365497,0.88828432,112750.0,112740.0,0.00443]
[1757057365999,2.12930216,112750.0,112740.0,0.03912]
[1757057366200,2.96830216,112750.0,112740.0,0.03912]
[1757057366497,2.97563265,112750.0,112740.0,0.03912]
[1757057366699,2.99520823,112750.0,112740.0,0.03912]
[1757057366890,2.99820823,112750.0,112740.0,0.04012]
[1757057367091,3.25919039,112750.0,112740.0,0.04012]
[1757057367290,3.25919039,112750.0,112740.0,0.01895]
[1757057367896,3.00028823,112750.0,112740.0,0.01895]
[1757057368096,2.98071265,112750.0,112740.0,0.01895]
[1757057368298,1.11250216,112750.0,112740.0,0.29012]
[1757057368493,0.85352,112750.0,112740.0,0.29012]
[1757057368693,1.11250216,112750.0,112740.0,0.29012]
[1757057369292,1.18275328,112750.0,112740.0,0.65092]
[1757057369898,1.18279328,112750.0,112740.0,0.65092]
[1757057370804,1.18279328,112750.0,112740.0,0.01895]
[1757057370992,1.54359328,112750.0,112740.0,0.01895]
[1757057371488,1.54359328,112750.0,112740.0,0.04012]
[1757057371695,0.92381112,112750.0,112740.0,0.03569]
[1757057371894,0.34379328,112750.0,112740.0,0.28569]
[1757057372096,1.18275328,112750.0,112740.0,0.28569]
[1757057373995,0.33427328,112750.0,112740.0,0.64649]
[1757057374194,1.17319328,112750.0,112740.0,0.64649]
[1757057374393,0.00504,112750.0,112740.0,0.99416116]
[1757057374996,0.26402216,112750.0,112740.0,0.99416116]
[1757057375898,0.26402216,112750.0,112740.0,0.90547216]
[1757057376903,0.26402216,112750.0,112740.0,0.64649]
[1757057377205,0.26402216,112750.0,112740.0,0.90547216]
[1757057377706,0.26402216,112750.0,112740.0,0.92598198]
[1757057378305,0.26402216,112750.0,112740.0,1.01467108]
[1757057378507,0.00504,112750.0,112740.0,1.07716828]
[1757057380507,0.00504,112750.0,112740.0,1.01467108]
[1757057381204,0.0001,112760.0,112750.0,0.0886812]
[1757057381408,1.16909508,112770.0,112760.0,0.03469]
[1757057381711,1.16899508,112770.0,112760.0,0.39549]
[1757057382305,0.33023508,112770.0,112760.0,0.39549]
[1757057382505,0.00014,112780.0,112770.0,0.03469]
[1757057382808,0.25902216,112780.0,112770.0,0.65447216]
[1757057383008,0.25902216,112780.0,112770.0,0.39549]
[1757057383009,0.28360038,112780.0,112770.0,0.39549]
[1757057383208,0.28360038,112780.0,112770.0,0.03469]
[1757057383410,0.00702822,112780.0,112770.0,0.96414057]
[1757057383711,0.00702822,112780.0,112770.0,0.7341554]
[1757057383897,4e-05,112780.0,112770.0,0.64549]
[1757057384103,4e-05,112780.0,112770.0,0.7341554]
[1757057384298,4e-05,112780.0,112770.0,1.80274057]
[1757057384502,0.00504,112780.0,112770.0,1.80374057]
[1757057384903,0.00504,112780.0,112770.0,0.96514057]
[1757057385110,0.00504,112780.0,112770.0,0.62747517]
[1757057385409,0.00504,112780.0,112770.0,1.55470057]
[1757057385816,17.346,112790.0,112780.0,0.1226276]
[1757057386005,17.3459,112790.0,112780.0,0.73404629]
[1757057386201,17.3459,112790.0,112780.0,1.25392352]
[1757057386513,17.3459,112790.0,112780.0,1.34254102]
[1757057386810,17.3459,112790.0,112780.0,1.40503822]
[1757057387002,17.3459,112790.0,112780.0,0.47790072]
[1757057387203,17.3459,112790.0,112780.0,0.47990072]
[1757057387503,17.36715,112790.0,112780.0,0.47990072]
[1757057387803,17.59713517,112790.0,112780.0,0.41840352]
[1757057388104,17.36715,112790.0,112780.0,0.41840352]
[1757057388609,17.36715,112790.0,112780.0,0.41740352]
[1757057389201,17.84713517,112790.0,112780.0,0.41740352]
[1757057389405,17.61715,112790.0,112780.0,0.05660352]
[1757057390107,17.62415,112790.0,112780.0,0.02263352]
[1757057390511,17.98495,112790.0,112780.0,0.002]
[1757057392212,18.20543,112790.0,112780.0,0.03597]
[1757057392412,18.56623,112790.0,112780.0,0.03597]
[1757057394312,18.20543,112790.0,112780.0,0.03597]
[1757057394815,18.56623,112790.0,112780.0,0.03597]
[1757057395221,17.72795,112790.0,112780.0,0.03597]
[1757057395412,17.36715,112790.0,112780.0,0.03597]
[1757057395610,18.56615,112790.0,112780.0,0.03597]
[1757057395817,18.20535,112790.0,112780.0,0.03597]
[1757057396116,18.56615,112790.0,112780.0,0.03597]
[1757057396611,18.20535,112790.0,112780.0,0.03597]
[1757057396819,18.56615,112790.0,112780.0,0.03597]
[1757057399008,18.57315,112790.0,112780.0,0.02322]
[1757057399209,18.57315,112790.0,112780.0,0.002]
[1757057400720,17.73495,112790.0,112780.0,0.02322]
[1757057400921,17.72795,112790.0,112780.0,0.03597]
[1757057401118,18.20523,112790.0,112780.0,0.03597]
[1757057401309,17.36715,112790.0,112780.0,0.64677]
[1757057401509,17.3459,112790.0,112780.0,0.64677]
[1757057401712,18.18394,112790.0,112780.0,0.64677]
[1757057401909,17.3459,112790.0,112780.0,0.7354276]
[1757057402115,17.3389,112790.0,112780.0,0.7354276]
[1757057402322,17.2969,112790.0,112780.0,1.6359648]
[1757057402518,17.2409,112790.0,112780.0,2.08983668]
[1757057402731,14.96265,112790.0,112780.0,3.9085432]
[1757057403020,14.96265,112790.0,112780.0,4.51866418]
[1757057403021,12.31185392,112790.0,112780.0,4.51866418]
[1757057403321,12.31185392,112790.0,112780.0,4.10194243]
[1757057403621,12.31185392,112790.0,112780.0,4.35194243]
[1757057403821,12.31185392,112790.0,112780.0,4.57737409]
[1757057404017,12.31185392,112790.0,112780.0,4.00737409]
[1757057404210,12.31285392,112790.0,112780.0,4.35322715]
[1757057404418,12.31285392,112790.0,112780.0,3.754651]
[1757057404618,12.31285392,112790.0,112780.0,2.916731]
[1757057404818,12.31285392,112790.0,112780.0,4.374651]
[1757057405014,12.31285392,112790.0,112780.0,4.124651]
[1757057405214,12.31285392,112790.0,112780.0,2.8389867]
[1757057405414,12.31285392,112790.0,112780.0,3.7468667]
[1757057405615,12.31285392,112790.0,112780.0,2.6482714]
[1757057405817,12.31285392,112790.0,112780.0,2.58606]
[1757057406513,13.31285392,112790.0,112780.0,1.74818]
[1757057406717,13.31285392,112790.0,112780.0,0.03022]
[1757057406718,13.68558392,112790.0,112780.0,0.03022]
[1757057407116,13.67265392,112790.0,112780.0,0.03022]
[1757057407310,12.31185392,112790.0,112780.0,0.3866767]
[1757057407514,12.31185392,112790.0,112780.0,0.7474767]
[1757057407720,12.31185392,112790.0,112780.0,1.1274767]
[1757057407920,12.31185392,112790.0,112780.0,0.7474767]
[1757057408125,12.31185392,112790.0,112780.0,0.4796776]
[1757057408611,12.31185392,112790.0,112780.0,1.3174776]
[1757057410327,12.31185392,112790.0,112780.0,1.3174376]
[1757057411330,12.31185392,112790.0,112780.0,0.4796776]
[1757057411531,12.31185392,112790.0,112780.0,1.3173976]
[1757057411923,13.31185392,112790.0,112780.0,1.3173976]
[1757057412530,13.31185392,112790.0,112780.0,0.4796776]
[1757057412731,13.31189392,112790.0,112780.0,1.3173576]
[1757057413828,13.31189392,112790.0,112780.0,1.3673576]
[1757057415233,13.31189392,112790.0,112780.0,1.4573576]
[1757057415833,13.31189392,112790.0,112780.0,1.6673576]
[1757057416233,13.31189392,112790.0,112780.0,1.4373576]
[1757057416427,13.31189392,112790.0,112780.0,1.6973576]
[1757057416621,13.31189392,112790.0,112780.0,1.4573576]
[1757057416822,13.31189392,112790.0,112780.0,1.8951567]
[1757057417738,12.31189392,112790.0,112780.0,1.8951567]
[1757057420834,13.31189392,112790.0,112780.0,0.8574767]
[1757057421137,13.31189392,112790.0,112780.0,1.5849567]
[1757057421739,13.31189392,112790.0,112780.0,1.5949567]
[1757057422237,14.80933392,112790.0,112780.0,0.03022]
[1757057422439,15.73252392,112790.0,112780.0,0.03022]
[1757057422734,0.03655,112780.0,112770.0,0.83744]
[1757057422937,1.47319676,112780.0,112770.0,0.83744]
[1757057423142,1.72319676,112780.0,112770.0,0.83744]
[1757057423438,1.72319676,112780.0,112760.0,0.02082998]
[1757057423439,0.01349,112770.0,112760.0,0.02082998]
[1757057423643,1.26093,112770.0,112760.0,0.85826998]
[1757057423841,1.44913676,112770.0,112760.0,0.85826998]
[1757057424843,1.44913676,112770.0,112760.0,0.94694328]
[1757057426337,1.44917676,112770.0,112760.0,0.94694328]
[1757057426534,1.45217676,112770.0,112760.0,0.85926998]
[1757057426741,1.47523676,112770.0,112760.0,0.02182998]
[1757057426936,1.45217676,112770.0,112760.0,0.94790328]
[1757057427440,0.56653676,112770.0,112760.0,0.85922998]
[1757057427632,0.56653676,112770.0,112760.0,0.94790328]
[1757057427835,1.45317676,112770.0,112760.0,0.94790328]
[1757057428134,1.45317676,112770.0,112760.0,0.11050328]
[1757057428342,1.72623676,112770.0,112760.0,0.02282998]
[1757057428538,1.72623676,112770.0,112760.0,0.86022998]
[1757057428941,1.72623676,112770.0,112760.0,0.85922998]
[1757057429343,1.72623676,112770.0,112760.0,0.85918998]
[1757057430041,1.72623676,112770.0,112760.0,0.02182998]
[1757057430347,1.72623676,112770.0,112760.0,0.85922998]
[1757057430543,2.61287676,112770.0,112760.0,0.85922998]
[1757057431243,2.61287676,112770.0,112760.0,0.02182998]
[1757057431450,2.61287676,112770.0,112760.0,0.85918998]
[1757057431647,2.61287676,112770.0,112760.0,0.02182998]
[1757057432037,1.72623676,112770.0,112760.0,0.02182998]
[1757057432243,2.61287676,112770.0,112760.0,0.02182998]
[1757057434550,2.88067586,112770.0,112760.0,0.02182998]
[1757057437455,3.72395586,112770.0,112760.0,0.02182998]
[1757057438053,3.45615676,112770.0,112760.0,0.02182998]
[1757057438549,3.20563676,112770.0,112760.0,0.02182998]
[1757057438854,3.20519676,112770.0,112760.0,0.02182998]
[1757057439548,2.36287676,112770.0,112760.0,0.02182998]
[1757057441757,2.88067586,112770.0,112760.0,0.001]
[1757057443454,2.61287676,112770.0,112760.0,0.001]
[1757057443656,2.88067586,112770.0,112760.0,0.001]
[1757057444849,3.47155586,112770.0,112760.0,0.001]
[1757057445564,3.52735054,112770.0,112760.0,0.001]
[1757057445863,3.20379676,112770.0,112760.0,0.001]
[1757057447963,3.52739054,112770.0,112760.0,0.001]
[1757057450663,2.64075054,112770.0,112760.0,0.001]
[1757057450866,3.52739054,112770.0,112760.0,0.001]
[1757057452463,3.20379676,112770.0,112760.0,0.001]
[1757057452662,2.64075054,112770.0,112760.0,0.001]
[1757057452964,3.52739054,112770.0,112760.0,0.001]
[1757057453363,3.77739054,112770.0,112760.0,0.001]
[1757057456168,3.45379676,112770.0,112760.0,0.001]
[1757057456468,3.52739054,112770.0,112760.0,0.001]
[1757057456666,3.52635054,112770.0,112760.0,0.001]
[1757057457866,3.77635054,112770.0,112760.0,0.001]
[1757057458067,3.77635054,112770.0,112750.0,0.0001]
[1757057458269,2.49413378,112760.0,112750.0,0.0001]
[1757057458462,0.03646,112750.0,112740.0,0.02060982]
[1757057458662,1.2839,112750.0,112740.0,0.02050982]
[1757057458862,1.60749378,112750.0,112740.0,0.02050982]
[1757057459258,2.44717378,112750.0,112740.0,0.02050982]
[1757057459464,3.33381378,112750.0,112740.0,0.02050982]
[1757057459663,2.17054,112750.0,112740.0,0.02050982]
[1757057459866,3.00926,112750.0,112740.0,0.02050982]
[1757057460162,3.52206054,112750.0,112740.0,0.02050982]
[1757057460557,0.03646,112740.0,112730.0,0.0001]
[1757057460764,0.03646,112730.0,112720.0,0.02095885]
[1757057460963,0.01385,112720.0,112710.0,0.0001]
[1757057461169,0.01385,112710.0,112700.0,1.79176909]
[1757057461365,0.39726,112710.0,112700.0,0.07798909]
[1757057461671,0.03646,112700.0,112690.0,0.25779632]
[1757057461968,0.39726,112700.0,112690.0,0.26507536]
[1757057462160,0.39626,112700.0,112690.0,0.26507536]
[1757057462864,0.39426,112700.0,112690.0,0.26507536]
[1757057463065,0.39426,112700.0,112690.0,0.18708627]
[1757057463668,0.39426,112700.0,112690.0,0.18808627]
[1757057464063,0.39426,112700.0,112690.0,0.43808627]
[1757057464260,0.39326,112700.0,112690.0,0.43808627]
[1757057464661,0.58246676,112700.0,112690.0,0.02130656]
[1757057464870,2.92934054,112700.0,112690.0,0.001]
[1757057465067,3.76798054,112700.0,112690.0,0.003]
[1757057465764,2.92934054,112700.0,112690.0,0.003]
[1757057465963,3.76818054,112700.0,112690.0,0.003]
[1757057466365,3.76818054,112700.0,112690.0,0.02264405]
[1757057466366,2.35774676,112700.0,112690.0,0.02264405]
[1757057467260,2.35774676,112700.0,112690.0,0.02064405]
[1757057467462,2.36074676,112700.0,112690.0,0.02064405]
[1757057471167,0.37565,112700.0,112690.0,0.35936865]
[1757057471470,0.39826,112700.0,112690.0,0.27064405]
[1757057471875,0.58746676,112700.0,112690.0,0.02064405]
[1757057472276,2.36074676,112700.0,112690.0,0.02064405]
[1757057472771,2.35774676,112700.0,112690.0,0.02064405]
[1757057473667,2.35774676,112700.0,112690.0,0.10936875]
[1757057473867,2.35874676,112700.0,112690.0,0.10936875]
[1757057474574,1.47410676,112700.0,112690.0,0.10936875]
[1757057474969,0.37565,112700.0,112690.0,0.68296253]
[1757057475166,0.01485,112700.0,112690.0,0.68296253]
[1757057476172,0.00985,112700.0,112690.0,0.68296253]
[1757057476761,0.00985,112700.0,112690.0,0.73296253]
[1757057477471,0.37065,112700.0,112690.0,0.76296253]
[1757057477673,0.37065,112700.0,112690.0,1.60236253]
[1757057477874,0.37065,112700.0,112690.0,1.52236253]
[1757057478075,0.37065,112700.0,112690.0,1.54236253]
[1757057478277,0.37065,112700.0,112690.0,0.70296243]
[1757057478466,0.37065,112700.0,112690.0,1.19836865]
[1757057478669,0.37069,112700.0,112690.0,1.19836865]
[1757057478974,0.37169,112700.0,112690.0,1.19836865]
[1757057479277,0.37269,112700.0,112690.0,1.19836865]
[1757057479966,0.01189,112700.0,112690.0,1.19836865]
[1757057480165,0.37269,112700.0,112690.0,1.26836865]
[1757057481173,0.56189676,112700.0,112690.0,0.94836865]
[1757057481374,0.58450676,112700.0,112690.0,0.94836865]
[1757057482166,0.58450676,112700.0,112690.0,0.94792865]
[1757057482375,0.58450676,112700.0,112690.0,0.94760865]
[1757057484379,0.20109676,112700.0,112690.0,0.94760865]
[1757057484566,0.56189676,112700.0,112690.0,0.94760865]
[1757057484769,0.56189676,112700.0,112690.0,1.26760865]
[1757057484965,0.56189676,112700.0,112690.0,0.94760865]
[1757057485674,0.56189676,112700.0,112690.0,0.99760865]
[1757057485980,0.20109676,112700.0,112690.0,0.99760865]
[1757057487580,0.56189676,112700.0,112690.0,1.58120243]
[1757057488373,0.20109676,112700.0,112690.0,1.58120243]
[1757057490581,0.20109676,112700.0,112690.0,1.25760865]
[1757057490782,0.20109676,112700.0,112690.0,1.58120243]
[1757057491481,0.20109676,112700.0,112690.0,1.51666478]
[1757057491672,0.20109676,112700.0,112690.0,1.76666478]
[1757057493082,0.20109676,112700.0,112690.0,1.50760865]
[1757057493280,0.20109676,112700.0,112690.0,1.76666478]
[1757057493477,0.19124676,112700.0,112690.0,1.76666478]
[1757057493780,0.00204,112700.0,112690.0,1.50095887]
[1757057494074,0.00204,112700.0,112690.0,1.58969395]
[1757057494281,0.00204,112700.0,112690.0,2.34986486]
[1757057494470,0.00204,112700.0,112690.0,2.42785395]
[1757057495377,0.00104,112700.0,112690.0,2.42785395]
[1757057495978,4e-05,112700.0,112690.0,2.42785395]
[1757057497180,0.01277,112700.0,112690.0,2.42781395]
[1757057497579,4e-05,112700.0,112690.0,2.42781395]
[1757057500477,4e-05,112700.0,112690.0,2.34982486]
[1757057500984,4e-05,112700.0,112690.0,2.42813814]
[1757057501680,0.0001,112710.0,112700.0,0.0887168]
[1757057501884,0.19641676,112710.0,112700.0,1.59413643]
[1757057503384,0.19641676,112710.0,112700.0,1.29413643]
[1757057503587,0.19641676,112710.0,112700.0,1.40413643]
[1757057503781,0.19641676,112710.0,112700.0,0.42609643]
[1757057503985,0.55721676,112710.0,112700.0,1.40409643]
[1757057504683,0.19641676,112710.0,112700.0,1.59409643]
[1757057504886,0.19641676,112710.0,112700.0,1.60409643]
[1757057505480,1.44385676,112710.0,112700.0,1.60409643]
[1757057505681,1.44485676,112710.0,112700.0,1.60409643]
[1757057505881,1.44585676,112710.0,112700.0,1.60409643]
[1757057506082,1.44585676,112710.0,112700.0,1.52577293]
[1757057507286,1.08505676,112710.0,112700.0,1.52577293]
[1757057507487,1.08505676,112710.0,112700.0,1.49694345]
[1757057508290,0.18568676,112710.0,112700.0,1.49694345]
[1757057508590,0.19926676,112710.0,112700.0,1.49694345]
[1757057509189,0.19826676,112710.0,112700.0,1.2667168]
[1757057509485,1.08390676,112710.0,112700.0,1.49694345]
[1757057509788,1.44470676,112710.0,112700.0,1.49694345]
[1757057509990,1.44570676,112710.0,112700.0,1.49694345]
[1757057510581,1.46755676,112710.0,112700.0,0.31894345]
[1757057510779,1.46755676,112710.0,112700.0,0.9265968]
[1757057511191,1.46855676,112710.0,112700.0,0.9265968]
[1757057512691,0.58191676,112710.0,112700.0,0.9265968]
[1757057512891,0.58191676,112710.0,112700.0,1.00493655]
[1757057513091,1.46855676,112710.0,112700.0,0.9265968]
[1757057514496,1.46855676,112710.0,112700.0,0.0987168]
[1757057514882,1.46855676,112710.0,112700.0,0.9365168]
[1757057515180,1.46855676,112710.0,112700.0,1.01485655]
[1757057515386,1.46855676,112710.0,112700.0,1.31485655]
[1757057515586,1.46855676,112710.0,112700.0,1.07485655]
[1757057516286,1.46855676,112710.0,112700.0,1.33485655]
[1757057516492,1.46855676,112710.0,112700.0,1.08485655]
[1757057517091,1.46855676,112710.0,112700.0,1.00485655]
[1757057517293,1.46855676,112710.0,112700.0,1.31485655]
[1757057517492,1.46855676,112710.0,112700.0,1.07485655]
[1757057518084,1.46855676,112710.0,112700.0,1.08485655]
[1757057518285,1.46855676,112710.0,112700.0,0.24705655]
[1757057518586,1.10775676,112710.0,112700.0,1.3150432]
[1757057518785,1.08590676,112710.0,112700.0,1.3150432]
[1757057519198,1.44670676,112710.0,112700.0,1.3150432]
[1757057519493,1.44674676,112710.0,112700.0,1.3150432]
[1757057520192,2.33338676,112710.0,112700.0,0.4772832]
[1757057520490,2.60523676,112710.0,112700.0,1.08489273]
[1757057521195,2.17155,112710.0,112700.0,1.31511938]
[1757057521495,2.17155,112710.0,112700.0,1.08489273]
[1757057521996,2.17155,112710.0,112700.0,0.44735938]
[1757057521997,1.81075,112710.0,112700.0,0.44735938]
[1757057522294,1.81075,112710.0,112700.0,1.28503938]
[1757057522494,1.81075,112710.0,112700.0,1.20662345]
[1757057522495,1.7889,112710.0,112700.0,1.20662345]
[1757057523889,2.1497,112710.0,112700.0,1.20662345]
[1757057524090,1.7889,112710.0,112700.0,1.20662345]
[1757057524290,2.17155,112710.0,112700.0,1.46662345]
[1757057524491,2.17155,112710.0,112700.0,0.9263968]
[1757057524689,2.17155,112710.0,112700.0,1.20662345]
[1757057524899,2.17155,112710.0,112700.0,1.15662345]
[1757057525094,2.17155,112710.0,112700.0,1.45662345]
[1757057525599,2.17155,112710.0,112700.0,1.25662345]
[1757057525799,1.99443676,112710.0,112700.0,1.25662345]
[1757057525989,1.08594676,112710.0,112700.0,1.29662345]
[1757057526184,1.08594676,112710.0,112700.0,1.40578632]
[1757057526391,1.08594676,112710.0,112700.0,1.60578632]
[1757057527599,1.08494676,112710.0,112700.0,1.60578632]
[1757057528393,1.08594676,112710.0,112700.0,1.60578632]
[1757057528593,1.08494676,112710.0,112700.0,1.60578632]
[1757057529401,1.08594676,112710.0,112700.0,1.60578632]
[1757057530803,1.08594676,112710.0,112700.0,1.37555967]
[1757057531000,1.97258676,112710.0,112700.0,1.60578632]
[1757057531497,1.08594676,112710.0,112700.0,1.69451352]